[Event "Titled Tuesday Blitz November 07 Early 2023"]
[White "Le, Quang Liem"]
[Black "Duda, Jan-Krzysztof"]
[WhiteFideId "12401137"]
[BlackFideId "1170546"]
[WhiteElo "3066"]
[BlackElo "3086"]
[Result "1/2-1/2"]
[Round "8"]
[TimeControl "180+1"]
[Date "2023.11.07"]
[WhiteClock "0:00:09"]
[BlackClock "0:00:16"]
[Board "2"]

1. Nf3 {[%clk 0:03:00]}  Nf6 {[%clk 0:02:58]} 2. c4 {[%clk 0:03:00]}  e6 {[%clk 0:02:58]} 3. Nc3 {[%clk 0:03:00]}  d5 {[%clk 0:02:58]} 4. e3 {[%clk 0:03:01]}  Be7 {[%clk 0:02:56]} 5. b3 {[%clk 0:03:01]}  O-O {[%clk 0:02:55]} 6. Bb2 {[%clk 0:03:01]}  c5 {[%clk 0:02:55]} 7. cxd5 {[%clk 0:02:56]}  exd5 {[%clk 0:02:56]} 8. d4 {[%clk 0:02:56]}  Nc6 {[%clk 0:02:45]} 9. Be2 {[%clk 0:02:44]}  Ne4 {[%clk 0:02:44]} 10. dxc5 {[%clk 0:02:30]}  Bf6 {[%clk 0:02:42]} 11. Rc1 {[%clk 0:02:25]}  Qa5 {[%clk 0:02:36]} 12. Nd4 {[%clk 0:02:24]}  Nxc5 {[%clk 0:02:33]} 13. Nxc6 {[%clk 0:02:20]}  bxc6 {[%clk 0:02:34]} 14. O-O {[%clk 0:02:10]}  Ne4 {[%clk 0:02:33]} 15. Qc2 {[%clk 0:02:03]}  Nxc3 {[%clk 0:02:33]} 16. Bxc3 {[%clk 0:02:04]}  Bxc3 {[%clk 0:02:33]} 17. Qxc3 {[%clk 0:02:03]}  Qxa2 {[%clk 0:02:33]} 18. Rc2 {[%clk 0:02:00]}  Qa3 {[%clk 0:02:34]} 19. Ra1 {[%clk 0:02:00]}  Qe7 {[%clk 0:02:32]} 20. Qxc6 {[%clk 0:02:00]}  Be6 {[%clk 0:02:32]} 21. Qc5 {[%clk 0:01:47]}  Qf6 {[%clk 0:02:25]} 22. Rxa7 {[%clk 0:01:28]}  Rac8 {[%clk 0:02:25]} 23. Rc7 {[%clk 0:01:27]}  Rxc7 {[%clk 0:02:25]} 24. Qxc7 {[%clk 0:01:28]}  d4 {[%clk 0:02:26]} 25. exd4 {[%clk 0:01:14]}  Bxb3 {[%clk 0:02:05]} 26. Rc3 {[%clk 0:01:07]}  Bd5 {[%clk 0:01:57]} 27. Qe5 {[%clk 0:01:00]}  Qxe5 {[%clk 0:01:44]} 28. dxe5 {[%clk 0:01:01]}  f6 {[%clk 0:01:45]} 29. exf6 {[%clk 0:00:59]}  Rxf6 {[%clk 0:01:44]} 30. f3 {[%clk 0:00:59]}  Rc6 {[%clk 0:01:40]} 31. Rd3 {[%clk 0:00:56]}  Be6 {[%clk 0:01:34]} 32. Rd2 {[%clk 0:00:56]}  h6 {[%clk 0:01:28]} 33. Kf2 {[%clk 0:00:55]}  Kf7 {[%clk 0:01:27]} 34. h4 {[%clk 0:00:55]}  Ke7 {[%clk 0:01:25]} 35. f4 {[%clk 0:00:51]}  Rb6 {[%clk 0:01:25]} 36. Bf3 {[%clk 0:00:49]}  Rb4 {[%clk 0:01:24]} 37. Kg3 {[%clk 0:00:47]}  Bf5 {[%clk 0:01:13]} 38. h5 {[%clk 0:00:46]}  Kf7 {[%clk 0:01:02]} 39. Ra2 {[%clk 0:00:42]}  Be4 {[%clk 0:01:01]} 40. Ra7+ {[%clk 0:00:38]}  Kf6 {[%clk 0:01:01]} 41. Ra6+ {[%clk 0:00:38]}  Kf7 {[%clk 0:01:01]} 42. Bxe4 {[%clk 0:00:27]}  Rxe4 {[%clk 0:01:01]} 43. Kg4 {[%clk 0:00:28]}  Rb4 {[%clk 0:01:00]} 44. Ra5 {[%clk 0:00:26]}  Kf6 {[%clk 0:01:00]} 45. g3 {[%clk 0:00:25]}  Rb1 {[%clk 0:00:58]} 46. Ra6+ {[%clk 0:00:25]}  Kf7 {[%clk 0:00:59]} 47. Rd6 {[%clk 0:00:25]}  Rb2 {[%clk 0:00:58]} 48. Rg6 {[%clk 0:00:21]}  Rb5 {[%clk 0:00:57]} 49. Kh4 {[%clk 0:00:21]}  Rb4 {[%clk 0:00:55]} 50. Kh3 {[%clk 0:00:21]}  Rb5 {[%clk 0:00:54]} 51. g4 {[%clk 0:00:21]}  Rb3+ {[%clk 0:00:52]} 52. Kh4 {[%clk 0:00:20]}  Rf3 {[%clk 0:00:48]} 53. f5 {[%clk 0:00:20]}  Kg8 {[%clk 0:00:43]} 54. Ra6 {[%clk 0:00:16]}  Kf7 {[%clk 0:00:43]} 55. Ra2 {[%clk 0:00:16]}  Kf6 {[%clk 0:00:43]} 56. Rg2 {[%clk 0:00:15]}  Kf7 {[%clk 0:00:33]} 57. Rg3 {[%clk 0:00:14]}  Rf1 {[%clk 0:00:31]} 58. Rc3 {[%clk 0:00:14]}  Rg1 {[%clk 0:00:28]} 59. Rg3 {[%clk 0:00:11]}  Rh1+ {[%clk 0:00:28]} 60. Rh3 {[%clk 0:00:11]}  Rg1 {[%clk 0:00:28]} 61. Re3 {[%clk 0:00:10]}  Kf6 {[%clk 0:00:28]} 62. Re6+ {[%clk 0:00:10]}  Kf7 {[%clk 0:00:29]} 63. Rg6 {[%clk 0:00:11]}  Rf1 {[%clk 0:00:21]} 64. Kg3 {[%clk 0:00:11]}  Kf8 {[%clk 0:00:21]} 65. Kg2 {[%clk 0:00:11]}  Rf4 {[%clk 0:00:20]} 66. Kg3 {[%clk 0:00:12]}  Rf1 {[%clk 0:00:21]} 67. Ra6 {[%clk 0:00:11]}  Kf7 {[%clk 0:00:21]} 68. Ra3 {[%clk 0:00:11]}  Kf6 {[%clk 0:00:19]} 69. Rf3 {[%clk 0:00:11]}  Ra1 {[%clk 0:00:19]} 70. Re3 {[%clk 0:00:11]}  Rf1 {[%clk 0:00:17]} 71. Re6+ {[%clk 0:00:09]}  Kf7 {[%clk 0:00:17]} 72. Re4 {[%clk 0:00:10]}  Kf6 {[%clk 0:00:17]} 73. Re6+ {[%clk 0:00:09]}  Kf7 {[%clk 0:00:18]} 74. Kg2 {[%clk 0:00:10]}  Rf4 {[%clk 0:00:17]} 75. Rg6 {[%clk 0:00:11]}  Kf8 {[%clk 0:00:16]} 76. Kg3 {[%clk 0:00:09]}  Rf1 {[%clk 0:00:16]} 1/2-1/2


[Site "https://www.chess.com"]

[Event "Titled Tuesday Blitz November 07 Early 2023"]
[White "Melkumyan, Hrant"]
[Black "Nihal Sarin"]
[WhiteFideId "13302485"]
[BlackFideId "25092340"]
[WhiteElo "2902"]
[BlackElo "3113"]
[Result "1-0"]
[Round "8"]
[TimeControl "180+1"]
[Date "2023.11.07"]
[WhiteClock "0:01:13"]
[BlackClock "0:00:54"]
[Board "3"]

1. Nf3 {[%clk 0:03:00]}  a6 {[%clk 0:03:00]} 2. d4 {[%clk 0:03:00]}  d5 {[%clk 0:02:59]} 3. Nbd2 {[%clk 0:02:57]}  Bf5 {[%clk 0:02:56]} 4. c4 {[%clk 0:02:54]}  e6 {[%clk 0:02:56]} 5. g3 {[%clk 0:02:52]}  Nc6 {[%clk 0:02:51]} 6. a3 {[%clk 0:02:50]}  Nf6 {[%clk 0:02:47]} 7. Bg2 {[%clk 0:02:49]}  h5 {[%clk 0:02:47]} 8. h3 {[%clk 0:02:45]}  Bd6 {[%clk 0:02:41]} 9. O-O {[%clk 0:02:44]}  h4 {[%clk 0:02:41]} 10. Nxh4 {[%clk 0:02:32]}  Bxh3 {[%clk 0:02:31]} 11. Bxh3 {[%clk 0:02:28]}  g5 {[%clk 0:02:32]} 12. e4 {[%clk 0:02:04]}  gxh4 {[%clk 0:02:21]} 13. e5 {[%clk 0:01:44]}  hxg3 {[%clk 0:02:21]} 14. Bg2 {[%clk 0:01:45]}  Nh5 {[%clk 0:02:12]} 15. exd6 {[%clk 0:01:33]}  Nxd4 {[%clk 0:01:58]} 16. Nf3 {[%clk 0:01:30]}  Nf5 {[%clk 0:01:48]} 17. dxc7 {[%clk 0:01:28]}  Qxc7 {[%clk 0:01:48]} 18. cxd5 {[%clk 0:01:28]}  Nf4 {[%clk 0:01:08]} 19. Qa4+ {[%clk 0:01:27]}  b5 {[%clk 0:01:06]} 20. Qxf4 {[%clk 0:01:27]}  gxf2+ {[%clk 0:00:59]} 21. Rxf2 {[%clk 0:01:27]}  Qc5 {[%clk 0:01:00]} 22. dxe6 {[%clk 0:01:24]}  O-O-O {[%clk 0:00:59]} 23. Bd2 {[%clk 0:01:18]}  Nd4 {[%clk 0:00:54]} 24. Nxd4 {[%clk 0:01:15]}  Rxd4 {[%clk 0:00:54]} 25. Rc1 {[%clk 0:01:13]} 1-0


[Site "https://www.chess.com"]

[Event "Titled Tuesday Blitz November 07 Early 2023"]
[White "Martinez Alcantara, Jose Eduardo"]
[Black "Kamsky, Gata"]
[WhiteFideId "3805662"]
[BlackFideId "2000024"]
[WhiteElo "3055"]
[BlackElo "2861"]
[Result "1-0"]
[Round "8"]
[TimeControl "180+1"]
[Date "2023.11.07"]
[WhiteClock "0:00:06"]
[BlackClock "0:00:01"]
[Board "5"]

1. e4 {[%clk 0:03:00]}  c5 {[%clk 0:02:59]} 2. Nf3 {[%clk 0:03:01]}  e6 {[%clk 0:02:59]} 3. c3 {[%clk 0:03:02]}  d5 {[%clk 0:02:56]} 4. e5 {[%clk 0:03:02]}  d4 {[%clk 0:02:53]} 5. g3 {[%clk 0:03:02]}  Bd7 {[%clk 0:02:46]} 6. d3 {[%clk 0:03:02]}  Bc6 {[%clk 0:02:44]} 7. Bg2 {[%clk 0:03:03]}  Ne7 {[%clk 0:02:44]} 8. O-O {[%clk 0:03:03]}  Nf5 {[%clk 0:02:42]} 9. Qe2 {[%clk 0:03:00]}  Be7 {[%clk 0:02:41]} 10. Nbd2 {[%clk 0:02:59]}  h5 {[%clk 0:02:33]} 11. h4 {[%clk 0:02:56]}  Nd7 {[%clk 0:02:24]} 12. Re1 {[%clk 0:02:50]}  Nb6 {[%clk 0:02:12]} 13. Ne4 {[%clk 0:02:50]}  Nd5 {[%clk 0:02:10]} 14. cxd4 {[%clk 0:02:41]}  cxd4 {[%clk 0:02:08]} 15. Bg5 {[%clk 0:02:36]}  Qb6 {[%clk 0:02:02]} 16. Bxe7 {[%clk 0:02:33]}  Kxe7 {[%clk 0:02:01]} 17. Qd2 {[%clk 0:02:27]}  Kf8 {[%clk 0:01:56]} 18. a3 {[%clk 0:02:24]}  a5 {[%clk 0:01:44]} 19. Rac1 {[%clk 0:02:24]}  a4 {[%clk 0:01:40]} 20. Nd6 {[%clk 0:01:47]}  Nxd6 {[%clk 0:01:37]} 21. exd6 {[%clk 0:01:48]}  Qd8 {[%clk 0:01:33]} 22. Nxd4 {[%clk 0:01:21]}  Qxd6 {[%clk 0:01:32]} 23. Nxc6 {[%clk 0:01:21]}  bxc6 {[%clk 0:01:32]} 24. Rc4 {[%clk 0:01:22]}  g6 {[%clk 0:00:55]} 25. Qc2 {[%clk 0:01:22]}  Kg7 {[%clk 0:00:51]} 26. Rxa4 {[%clk 0:01:22]}  Rxa4 {[%clk 0:00:50]} 27. Qxa4 {[%clk 0:01:23]}  Rb8 {[%clk 0:00:44]} 28. b4 {[%clk 0:01:16]}  Ne7 {[%clk 0:00:41]} 29. Qc2 {[%clk 0:01:12]}  Kg8 {[%clk 0:00:39]} 30. Rc1 {[%clk 0:01:09]}  Rb6 {[%clk 0:00:32]} 31. Be4 {[%clk 0:01:03]}  Ra6 {[%clk 0:00:30]} 32. Qb3 {[%clk 0:00:56]}  Qd4 {[%clk 0:00:28]} 33. Kg2 {[%clk 0:00:51]}  Nd5 {[%clk 0:00:22]} 34. Bxd5 {[%clk 0:00:33]}  exd5 {[%clk 0:00:21]} 35. Qc3 {[%clk 0:00:32]}  Qa7 {[%clk 0:00:19]} 36. Qe5 {[%clk 0:00:25]}  Qd7 {[%clk 0:00:16]} 37. Rc3 {[%clk 0:00:23]}  Ra8 {[%clk 0:00:15]} 38. Qf6 {[%clk 0:00:20]}  Rc8 {[%clk 0:00:13]} 39. d4 {[%clk 0:00:21]}  Qb7 {[%clk 0:00:11]} 40. Re3 {[%clk 0:00:20]}  Rf8 {[%clk 0:00:10]} 41. g4 {[%clk 0:00:17]}  Qd7 {[%clk 0:00:09]} 42. gxh5 {[%clk 0:00:10]}  Qg4+ {[%clk 0:00:09]} 43. Rg3 {[%clk 0:00:11]}  Qxh5 {[%clk 0:00:10]} 44. Rg5 {[%clk 0:00:10]}  Qe2 {[%clk 0:00:09]} 45. h5 {[%clk 0:00:10]}  Qe4+ {[%clk 0:00:08]} 46. Kg3 {[%clk 0:00:07]}  Qd3+ {[%clk 0:00:08]} 47. Kh2 {[%clk 0:00:06]}  Qe4 {[%clk 0:00:05]} 48. hxg6 {[%clk 0:00:06]}  fxg6 {[%clk 0:00:01]} 49. Rxg6+ {[%clk 0:00:06]} 1-0


[Site "https://www.chess.com"]

[Event "Titled Tuesday Blitz November 07 Early 2023"]
[White "Kazakouski, Valery"]
[Black "Xiong, Jeffery"]
[WhiteFideId "13507443"]
[BlackFideId "2047640"]
[WhiteElo "2892"]
[BlackElo "3014"]
[Result "1/2-1/2"]
[Round "8"]
[TimeControl "180+1"]
[Date "2023.11.07"]
[WhiteClock "0:00:05"]
[BlackClock "0:00:22"]
[Board "6"]

1. Nf3 {[%clk 0:03:00]}  c5 {[%clk 0:02:59]} 2. e4 {[%clk 0:03:00]}  Nc6 {[%clk 0:02:58]} 3. Bb5 {[%clk 0:03:00]}  d6 {[%clk 0:02:58]} 4. O-O {[%clk 0:02:57]}  Bd7 {[%clk 0:02:57]} 5. Re1 {[%clk 0:02:57]}  Nf6 {[%clk 0:02:52]} 6. c3 {[%clk 0:02:57]}  a6 {[%clk 0:02:52]} 7. Bf1 {[%clk 0:02:57]}  Bg4 {[%clk 0:02:52]} 8. d4 {[%clk 0:02:57]}  Bxf3 {[%clk 0:02:50]} 9. gxf3 {[%clk 0:02:57]}  cxd4 {[%clk 0:02:46]} 10. cxd4 {[%clk 0:02:58]}  d5 {[%clk 0:02:47]} 11. Nc3 {[%clk 0:02:55]}  e6 {[%clk 0:02:46]} 12. Bg5 {[%clk 0:02:47]}  Be7 {[%clk 0:02:47]} 13. Bxf6 {[%clk 0:02:42]}  Bxf6 {[%clk 0:02:48]} 14. exd5 {[%clk 0:02:42]}  Nxd4 {[%clk 0:02:48]} 15. Re4 {[%clk 0:02:32]}  Nf5 {[%clk 0:02:49]} 16. dxe6 {[%clk 0:02:26]}  O-O {[%clk 0:02:49]} 17. exf7+ {[%clk 0:02:22]}  Kh8 {[%clk 0:02:49]} 18. Qb3 {[%clk 0:01:27]}  Nd4 {[%clk 0:02:42]} 19. Qxb7 {[%clk 0:01:27]}  Nxf3+ {[%clk 0:02:34]} 20. Kg2 {[%clk 0:01:23]}  Ng5 {[%clk 0:02:32]} 21. Rd1 {[%clk 0:01:16]}  Qb8 {[%clk 0:02:17]} 22. Qxb8 {[%clk 0:01:09]}  Raxb8 {[%clk 0:02:18]} 23. Re8 {[%clk 0:01:05]}  Rfxe8 {[%clk 0:00:48]} 24. fxe8=Q+ {[%clk 0:01:06]}  Rxe8 {[%clk 0:00:49]} 25. Bxa6 {[%clk 0:01:06]}  Ne6 {[%clk 0:00:50]} 26. Bc4 {[%clk 0:00:58]}  Nf4+ {[%clk 0:00:46]} 27. Kf3 {[%clk 0:00:58]}  Rf8 {[%clk 0:00:44]} 28. Ke4 {[%clk 0:00:40]}  Nh3 {[%clk 0:00:40]} 29. Rd2 {[%clk 0:00:41]}  Bg5 {[%clk 0:00:34]} 30. Rc2 {[%clk 0:00:41]}  Nxf2+ {[%clk 0:00:32]} 31. Kd5 {[%clk 0:00:37]}  Ng4 {[%clk 0:00:32]} 32. Nd1 {[%clk 0:00:34]}  Rd8+ {[%clk 0:00:28]} 33. Ke6 {[%clk 0:00:32]}  Rxd1 {[%clk 0:00:29]} 34. Be2 {[%clk 0:00:30]}  Rc1 {[%clk 0:00:21]} 35. Rxc1 {[%clk 0:00:21]}  Bxc1 {[%clk 0:00:22]} 36. Bxg4 {[%clk 0:00:18]}  Bxb2 {[%clk 0:00:22]} 37. a4 {[%clk 0:00:18]}  Bc3 {[%clk 0:00:23]} 38. Kf7 {[%clk 0:00:14]}  g6 {[%clk 0:00:21]} 39. Be2 {[%clk 0:00:11]}  Ba5 {[%clk 0:00:21]} 40. h3 {[%clk 0:00:11]}  Bb4 {[%clk 0:00:21]} 41. Bd3 {[%clk 0:00:11]}  Ba5 {[%clk 0:00:22]} 42. Bxg6 {[%clk 0:00:04]}  hxg6 {[%clk 0:00:23]} 43. Kxg6 {[%clk 0:00:05]}  Kg8 {[%clk 0:00:22]} 44. h4 {[%clk 0:00:05]} 1/2-1/2


[Site "https://www.chess.com"]

[Event "Titled Tuesday Blitz November 07 Early 2023"]
[White "Bauman_Guy"]
[Black "Nyzhnyk, Illya"]
[BlackFideId "14118084"]
[WhiteElo "2931"]
[BlackElo "2860"]
[Result "0-1"]
[Round "8"]
[TimeControl "180+1"]
[Date "2023.11.07"]
[WhiteClock "0:00:02"]
[BlackClock "0:00:13"]
[Board "7"]

1. e4 {[%clk 0:02:53]}  c6 {[%clk 0:02:54]} 2. d4 {[%clk 0:02:53]}  d5 {[%clk 0:02:55]} 3. e5 {[%clk 0:02:54]}  Bf5 {[%clk 0:02:55]} 4. h4 {[%clk 0:02:53]}  Qc7 {[%clk 0:02:53]} 5. Be3 {[%clk 0:02:50]}  a6 {[%clk 0:02:53]} 6. Nc3 {[%clk 0:02:47]}  h5 {[%clk 0:02:53]} 7. Nge2 {[%clk 0:02:43]}  g6 {[%clk 0:02:49]} 8. Ng3 {[%clk 0:02:40]}  Bd7 {[%clk 0:02:49]} 9. Na4 {[%clk 0:02:34]}  e6 {[%clk 0:02:48]} 10. Bd3 {[%clk 0:02:31]}  b6 {[%clk 0:02:48]} 11. c3 {[%clk 0:02:21]}  c5 {[%clk 0:02:48]} 12. b3 {[%clk 0:02:21]}  Bxa4 {[%clk 0:02:41]} 13. bxa4 {[%clk 0:02:22]}  Nc6 {[%clk 0:02:41]} 14. Ne2 {[%clk 0:02:18]}  Nh6 {[%clk 0:02:41]} 15. O-O {[%clk 0:02:14]}  Nf5 {[%clk 0:02:40]} 16. Bxf5 {[%clk 0:02:14]}  gxf5 {[%clk 0:02:39]} 17. Nf4 {[%clk 0:02:15]}  Be7 {[%clk 0:02:38]} 18. g3 {[%clk 0:02:14]}  Na5 {[%clk 0:02:38]} 19. Nxh5 {[%clk 0:02:07]}  Nc4 {[%clk 0:02:39]} 20. Bg5 {[%clk 0:02:07]}  Bxg5 {[%clk 0:02:35]} 21. hxg5 {[%clk 0:02:08]}  O-O-O {[%clk 0:02:36]} 22. Kg2 {[%clk 0:02:08]}  Kb7 {[%clk 0:02:33]} 23. Rh1 {[%clk 0:02:06]}  Rhg8 {[%clk 0:02:28]} 24. Qc1 {[%clk 0:02:05]}  Qc6 {[%clk 0:02:24]} 25. Nf6 {[%clk 0:02:03]}  Rg7 {[%clk 0:02:24]} 26. Rb1 {[%clk 0:01:59]}  cxd4 {[%clk 0:02:23]} 27. cxd4 {[%clk 0:02:00]}  Qxa4 {[%clk 0:02:24]} 28. g6 {[%clk 0:01:50]}  fxg6 {[%clk 0:02:20]} 29. Qh6 {[%clk 0:01:48]}  Rc7 {[%clk 0:02:21]} 30. Qxg6 {[%clk 0:01:44]}  Qxa2 {[%clk 0:02:21]} 31. Rbe1 {[%clk 0:01:33]}  Qd2 {[%clk 0:01:52]} 32. Ne8 {[%clk 0:01:23]}  Re7 {[%clk 0:01:49]} 33. Nd6+ {[%clk 0:00:55]}  Nxd6 {[%clk 0:01:48]} 34. exd6 {[%clk 0:00:56]}  Rxd6 {[%clk 0:01:49]} 35. Rh7 {[%clk 0:00:47]}  Rxh7 {[%clk 0:01:49]} 36. Qxh7+ {[%clk 0:00:48]}  Kc6 {[%clk 0:01:50]} 37. Ra1 {[%clk 0:00:44]}  a5 {[%clk 0:01:41]} 38. Qg8 {[%clk 0:00:38]}  Qb2 {[%clk 0:01:15]} 39. Qe8+ {[%clk 0:00:36]}  Kc7 {[%clk 0:01:15]} 40. Rh1 {[%clk 0:00:33]}  Rd7 {[%clk 0:00:50]} 41. Qxe6 {[%clk 0:00:29]}  Qc2 {[%clk 0:00:46]} 42. Re1 {[%clk 0:00:23]}  a4 {[%clk 0:00:46]} 43. Re3 {[%clk 0:00:22]}  f4 {[%clk 0:00:42]} 44. Qe5+ {[%clk 0:00:17]}  Kb7 {[%clk 0:00:42]} 45. Qxf4 {[%clk 0:00:18]}  Qc4 {[%clk 0:00:33]} 46. Qf6 {[%clk 0:00:15]}  Qb4 {[%clk 0:00:32]} 47. Qe6 {[%clk 0:00:14]}  Qd6 {[%clk 0:00:32]} 48. Qe8 {[%clk 0:00:12]}  b5 {[%clk 0:00:31]} 49. Re6 {[%clk 0:00:12]}  Qc7 {[%clk 0:00:30]} 50. Qf8 {[%clk 0:00:09]}  Qc4 {[%clk 0:00:27]} 51. Re8 {[%clk 0:00:09]}  Kb6 {[%clk 0:00:21]} 52. Ra8 {[%clk 0:00:07]}  Qc7 {[%clk 0:00:20]} 53. Qb4 {[%clk 0:00:06]}  Rf7 {[%clk 0:00:11]} 54. Qa5+ {[%clk 0:00:05]}  Kc6 {[%clk 0:00:11]} 55. Ra6+ {[%clk 0:00:05]}  Kd7 {[%clk 0:00:12]} 56. Qxb5+ {[%clk 0:00:05]}  Ke7 {[%clk 0:00:10]} 57. Qxd5 {[%clk 0:00:05]}  Rxf2+ {[%clk 0:00:07]} 58. Kxf2 {[%clk 0:00:03]}  Qc2+ {[%clk 0:00:08]} 59. Kg1 {[%clk 0:00:03]}  Qd1+ {[%clk 0:00:07]} 60. Kh2 {[%clk 0:00:04]}  Qe2+ {[%clk 0:00:08]} 61. Kh3 {[%clk 0:00:04]}  Qxa6 {[%clk 0:00:09]} 62. Qc5+ {[%clk 0:00:04]}  Kf6 {[%clk 0:00:09]} 63. Qe5+ {[%clk 0:00:04]}  Kf7 {[%clk 0:00:09]} 64. Qf4+ {[%clk 0:00:04]}  Qf6 {[%clk 0:00:08]} 65. Qc7+ {[%clk 0:00:02]}  Qe7 {[%clk 0:00:09]} 66. Qf4+ {[%clk 0:00:02]}  Ke8 {[%clk 0:00:09]} 67. Qb8+ {[%clk 0:00:02]}  Qd8 {[%clk 0:00:09]} 68. Qe5+ {[%clk 0:00:02]}  Qe7 {[%clk 0:00:10]} 69. Qa5 {[%clk 0:00:02]}  Qd7+ {[%clk 0:00:09]} 70. g4 {[%clk 0:00:01]}  Qxd4 {[%clk 0:00:10]} 71. Kh4 {[%clk 0:00:02]}  Kf7 {[%clk 0:00:11]} 72. Qa6 {[%clk 0:00:01]}  Qf6+ {[%clk 0:00:11]} 73. Qxf6+ {[%clk 0:00:01]}  Kxf6 {[%clk 0:00:12]} 74. Kh5 {[%clk 0:00:02]}  Kg7 {[%clk 0:00:12]} 75. Kg5 {[%clk 0:00:02]}  a3 {[%clk 0:00:12]} 76. Kf4 {[%clk 0:00:02]}  a2 {[%clk 0:00:13]} 0-1


[Site "https://www.chess.com"]

[Event "Titled Tuesday Blitz November 07 Early 2023"]
[White "Sychev, Klementy"]
[Black "Kukhmazov, Arsen"]
[WhiteFideId "4114060"]
[BlackFideId "24108260"]
[WhiteElo "2853"]
[BlackElo "2922"]
[Result "1-0"]
[Round "8"]
[TimeControl "180+1"]
[Date "2023.11.07"]
[WhiteClock "0:00:04"]
[BlackClock "0:00:00"]
[Board "8"]

1. e4 {[%clk 0:02:55]}  c6 {[%clk 0:03:00]} 2. c4 {[%clk 0:02:56]}  d5 {[%clk 0:03:01]} 3. cxd5 {[%clk 0:02:57]}  cxd5 {[%clk 0:03:02]} 4. exd5 {[%clk 0:02:58]}  Nf6 {[%clk 0:03:02]} 5. Qa4+ {[%clk 0:02:58]}  Nbd7 {[%clk 0:03:02]} 6. Nc3 {[%clk 0:02:59]}  g6 {[%clk 0:03:02]} 7. Bc4 {[%clk 0:02:59]}  a6 {[%clk 0:03:02]} 8. Nf3 {[%clk 0:02:57]}  Rb8 {[%clk 0:03:02]} 9. Bb3 {[%clk 0:02:57]}  Bg7 {[%clk 0:02:56]} 10. O-O {[%clk 0:02:52]}  O-O {[%clk 0:02:52]} 11. Qf4 {[%clk 0:02:43]}  Nh5 {[%clk 0:01:58]} 12. Qe3 {[%clk 0:02:26]}  b5 {[%clk 0:01:33]} 13. Re1 {[%clk 0:02:16]}  Re8 {[%clk 0:01:06]} 14. d6 {[%clk 0:01:18]}  e6 {[%clk 0:01:05]} 15. Nd5 {[%clk 0:01:17]}  Bb7 {[%clk 0:00:54]} 16. Nc7 {[%clk 0:01:07]}  Rf8 {[%clk 0:00:49]} 17. Ng5 {[%clk 0:01:05]}  Bd4 {[%clk 0:00:17]} 18. Ngxe6 {[%clk 0:00:40]}  Bxe3 {[%clk 0:00:16]} 19. Nxd8 {[%clk 0:00:40]}  Bxf2+ {[%clk 0:00:13]} 20. Kxf2 {[%clk 0:00:40]}  Rbxd8 {[%clk 0:00:14]} 21. d4 {[%clk 0:00:20]}  Nb6 {[%clk 0:00:05]} 22. Bg5 {[%clk 0:00:16]}  Rxd6 {[%clk 0:00:05]} 23. Be7 {[%clk 0:00:15]}  Rxd4 {[%clk 0:00:04]} 24. Bxf8 {[%clk 0:00:14]}  Kxf8 {[%clk 0:00:03]} 25. Rad1 {[%clk 0:00:13]}  Rxd1 {[%clk 0:00:04]} 26. Rxd1 {[%clk 0:00:10]}  Nf6 {[%clk 0:00:04]} 27. h3 {[%clk 0:00:04]}  Ke7 {[%clk 0:00:04]} 28. g4 {[%clk 0:00:04]}  h6 {[%clk 0:00:04]} 29. Kg1 {[%clk 0:00:03]}  Ne4 {[%clk 0:00:03]} 30. Nd5+ {[%clk 0:00:02]}  Bxd5 {[%clk 0:00:03]} 31. Bxd5 {[%clk 0:00:03]}  Nd6 {[%clk 0:00:03]} 32. Re1+ {[%clk 0:00:03]}  Kf6 {[%clk 0:00:04]} 33. Bb3 {[%clk 0:00:03]}  g5 {[%clk 0:00:03]} 34. Kf2 {[%clk 0:00:04]}  Nd7 {[%clk 0:00:02]} 35. Rd1 {[%clk 0:00:04]}  Ke7 {[%clk 0:00:03]} 36. Kg2 {[%clk 0:00:03]}  Nc5 {[%clk 0:00:03]} 37. Rc1 {[%clk 0:00:03]}  Ndb7 {[%clk 0:00:01]} 38. Re1+ {[%clk 0:00:03]}  Kd6 {[%clk 0:00:02]} 39. Bxf7 {[%clk 0:00:03]}  Nd8 {[%clk 0:00:02]} 40. Rd1+ {[%clk 0:00:03]}  Ke7 {[%clk 0:00:02]} 41. Bg6 {[%clk 0:00:04]}  Nde6 {[%clk 0:00:02]} 42. Bf5 {[%clk 0:00:04]}  Nf4+ {[%clk 0:00:03]} 43. Kh2 {[%clk 0:00:04]}  Na4 {[%clk 0:00:02]} 44. Rd7+ {[%clk 0:00:04]}  Kf6 {[%clk 0:00:03]} 45. Rd6+ {[%clk 0:00:04]}  Ke5 {[%clk 0:00:03]} 46. Rxa6 {[%clk 0:00:05]}  Nxb2 {[%clk 0:00:04]} 47. Rxh6 {[%clk 0:00:05]}  Nc4 {[%clk 0:00:04]} 48. Rc6 {[%clk 0:00:04]}  Nd6 {[%clk 0:00:04]} 49. Rb6 {[%clk 0:00:04]}  Nd5 {[%clk 0:00:04]} 50. Rb8 {[%clk 0:00:04]}  b4 {[%clk 0:00:04]} 51. Kg3 {[%clk 0:00:04]}  Nc3 {[%clk 0:00:04]} 52. Ra8 {[%clk 0:00:03]}  Ndb5 {[%clk 0:00:03]} 53. h4 {[%clk 0:00:03]}  gxh4+ {[%clk 0:00:04]} 54. Kxh4 {[%clk 0:00:03]}  Nd4 {[%clk 0:00:05]} 55. Bg6 {[%clk 0:00:03]}  Kf4 {[%clk 0:00:03]} 56. Rf8+ {[%clk 0:00:03]}  Ke5 {[%clk 0:00:03]} 57. Re8+ {[%clk 0:00:03]}  Kf4 {[%clk 0:00:03]} 58. Ra8 {[%clk 0:00:03]}  Ke5 {[%clk 0:00:02]} 59. Kh5 {[%clk 0:00:04]}  Ne6 {[%clk 0:00:02]} 60. Bf7 {[%clk 0:00:03]}  Nf4+ {[%clk 0:00:02]} 61. Kh6 {[%clk 0:00:04]}  Ne4 {[%clk 0:00:02]} 62. Re8+ {[%clk 0:00:03]}  Kd4 {[%clk 0:00:02]} 63. g5 {[%clk 0:00:04]}  Ng3 {[%clk 0:00:02]} 64. g6 {[%clk 0:00:03]}  Nd3 {[%clk 0:00:01]} 65. Rd8+ {[%clk 0:00:03]}  Ke3 {[%clk 0:00:01]} 66. Rxd3+ {[%clk 0:00:03]}  Kxd3 {[%clk 0:00:02]} 67. Kg5 {[%clk 0:00:04]}  Ne4+ {[%clk 0:00:03]} 68. Kf4 {[%clk 0:00:04]}  Nd6 {[%clk 0:00:00]} 69. g7 {[%clk 0:00:04]} 1-0


[Site "https://www.chess.com"]

[Event "Titled Tuesday Blitz November 07 Early 2023"]
[White "Nenezic, Marko"]
[Black "Firouzja, Alireza"]
[WhiteFideId "912123"]
[BlackFideId "12573981"]
[WhiteElo "2865"]
[BlackElo "3073"]
[Result "1-0"]
[Round "8"]
[TimeControl "180+1"]
[Date "2023.11.07"]
[WhiteClock "0:01:04"]
[BlackClock "0:02:01"]
[Board "11"]

1. d4 {[%clk 0:03:00]}  a6 {[%clk 0:02:55]} 2. e4 {[%clk 0:02:58]}  c6 {[%clk 0:02:56]} 3. c4 {[%clk 0:02:57]}  d5 {[%clk 0:02:57]} 4. Nc3 {[%clk 0:02:55]}  dxe4 {[%clk 0:02:57]} 5. Nxe4 {[%clk 0:02:55]}  Bf5 {[%clk 0:02:57]} 6. Ng3 {[%clk 0:02:54]}  Bg6 {[%clk 0:02:58]} 7. Nf3 {[%clk 0:02:54]}  Nd7 {[%clk 0:02:58]} 8. h4 {[%clk 0:02:53]}  h6 {[%clk 0:02:58]} 9. h5 {[%clk 0:02:54]}  Bh7 {[%clk 0:02:58]} 10. Bd3 {[%clk 0:02:53]}  Bxd3 {[%clk 0:02:59]} 11. Qxd3 {[%clk 0:02:54]}  e6 {[%clk 0:03:00]} 12. O-O {[%clk 0:02:53]}  Ngf6 {[%clk 0:03:01]} 13. Bf4 {[%clk 0:02:52]}  Be7 {[%clk 0:03:01]} 14. Rfd1 {[%clk 0:02:43]}  O-O {[%clk 0:03:02]} 15. Ne5 {[%clk 0:02:42]}  Qc8 {[%clk 0:02:54]} 16. Qf3 {[%clk 0:02:37]}  Rd8 {[%clk 0:02:52]} 17. Rd3 {[%clk 0:02:23]}  Nxe5 {[%clk 0:02:51]} 18. Bxe5 {[%clk 0:02:23]}  Rd7 {[%clk 0:02:49]} 19. Rad1 {[%clk 0:02:23]}  Qd8 {[%clk 0:02:46]} 20. b3 {[%clk 0:02:15]}  Qa5 {[%clk 0:02:45]} 21. Ne4 {[%clk 0:02:09]}  Nxe4 {[%clk 0:02:30]} 22. Qxe4 {[%clk 0:02:09]}  Rad8 {[%clk 0:02:30]} 23. Rg3 {[%clk 0:01:56]}  Bf8 {[%clk 0:02:30]} 24. c5 {[%clk 0:01:20]}  Qxa2 {[%clk 0:02:18]} 25. Bf6 {[%clk 0:01:09]}  Re8 {[%clk 0:02:01]} 26. Rxg7+ {[%clk 0:01:04]} 1-0


[Site "https://www.chess.com"]